bitfinex-derivatives/quotes_ETHF0:USTF0_20241231
["timestamp","ask_amount","ask_price","bid_price","bid_amount"]
[1735678292394,0.29884,3352.1,3352.0,4.69265981]
[1735678292789,0.29885,3352.0,3351.9,4.99150981]
[1735678293192,0.29885,3352.0,3351.9,4.99151981]
[1735678293394,0.29885,3352.0,3351.9,4.69265981]
[1735678294096,0.29885,3352.0,3351.9,0.29886]
[1735678294497,0.9147,3352.1,3351.7,3.6572]
[1735678294695,0.29886,3351.9,3351.8,0.29886]
[1735678295299,3.2078,3352.0,3351.7,0.4494]
[1735678295691,0.29886,3351.9,3351.8,0.29886]
[1735678295895,3.2078,3352.0,3351.8,0.29886]
[1735678296095,3.50307988,3352.4,3352.3,0.29882]
[1735678296401,5.8122052,3352.7,3352.6,0.29879]
[1735678297702,3.2078,3352.8,3352.7,0.29878]
[1735678299406,4.82833408,3353.2,3352.6,3.2078]
[1735678299407,3.92513408,3353.2,3352.6,3.2078]
[1735678299696,3.92513408,3353.2,3353.1,0.29875]
[1735678299697,3.49893408,3353.2,3353.1,0.29875]
[1735678300289,3.49893408,3353.2,3352.6,3.6355]
[1735678300494,3.49893408,3353.2,3352.5,4.69265981]
[1735678300697,0.29878,3352.7,3352.5,4.99145981]
[1735678300897,3.2078,3353.0,3352.5,4.69265981]
[1735678301098,3.50656,3353.0,3352.8,0.29877]
[1735678301293,3.2078,3353.0,3352.4,4.69265981]
[1735678301499,0.29878,3352.8,3352.6,0.29879]
[1735678302298,3.2078,3353.0,3352.4,4.69265981]
[1735678302498,3.2078,3353.0,3352.7,0.29878]
[1735678302499,0.29877,3352.9,3352.7,0.29878]
[1735678303097,0.29877,3352.9,3352.3,1.6692]
[1735678303294,0.29877,3352.9,3352.8,0.29878]
[1735678303493,0.29877,3352.9,3352.3,1.6692]
[1735678303704,0.29877,3352.9,3352.7,0.29878]
[1735678304204,0.29878,3352.8,3352.3,6.36185981]
[1735678304502,0.29878,3352.8,3352.7,0.29878]
[1735678306703,0.29878,3352.8,3352.3,1.6692]
[1735678306897,0.29878,3352.8,3352.2,7.90045981]
[1735678306898,5.53767409,3352.6,3352.2,4.69265981]
[1735678307101,5.53767409,3352.6,3352.2,1.03595981]
[1735678307102,0.29882,3352.3,3352.2,1.03595981]
[1735678307408,0.9299,3352.5,3352.1,7.0362044]
[1735678307409,0.29883,3352.2,3352.1,7.0362044]
[1735678307606,5.83650409,3352.2,3352.1,7.0362044]
[1735678307803,0.29887,3351.7,3351.6,7.0362044]
[1735678308102,5.83654409,3351.7,3351.6,7.0362044]
[1735678308408,5.83654409,3351.7,3351.6,5.90539238]
[1735678308409,10.83654409,3351.7,3351.6,5.90539238]
[1735678308610,10.83654409,3351.7,3351.6,5.73479238]
[1735678308611,11.84601439,3351.7,3351.6,5.73479238]
[1735678308799,11.2575106,3351.7,3351.6,4.14492238]
[1735678309006,11.2575106,3351.7,3351.6,3.36755238]
[1735678309199,11.2575106,3351.7,3350.6,16.80538671]
[1735678309200,0.29894,3350.9,3350.8,0.01989]
[1735678309404,3.50674,3350.9,3350.8,0.01989]
[1735678310510,3.2078,3350.9,3350.8,0.31884]
[1735678311103,3.50674,3350.9,3350.8,0.01989]
[1735678311709,0.29894,3350.9,3350.8,0.01989]
[1735678312702,0.29894,3350.9,3350.8,0.31884]
[1735678313712,0.29894,3350.9,3350.8,0.01989]
[1735678315611,0.29894,3350.9,3350.8,0.31884]
[1735678315909,0.29894,3350.9,3350.8,0.01989]
[1735678318011,0.29895,3350.8,3350.7,0.75246]
[1735678319106,0.29895,3350.8,3350.7,0.4535]
[1735678319417,3.50675,3350.8,3350.7,0.4535]
[1735678320310,0.29896,3350.7,3350.6,0.4625]
[1735678320706,3.50676,3350.8,3350.7,0.29896]
[1735678320918,0.29896,3350.8,3350.7,0.29896]
[1735678321314,3.2078,3351.2,3350.6,0.4625]
[1735678321712,1.81070804,3350.7,3350.3,0.4374]
[1735678322008,0.299,3350.3,3350.2,0.4579]
[1735678322316,0.29904,3349.8,3349.7,0.29905]
[1735678322512,0.29904,3349.9,3349.8,0.29903]
[1735678322812,3.2078,3350.0,3349.9,0.29903]
[1735678323012,3.50683,3350.0,3349.9,0.29903]
[1735678323715,3.2078,3350.0,3349.9,0.29903]
[1735678323914,3.50683,3350.0,3349.9,0.29903]
[1735678324110,3.50683,3350.0,3349.6,0.8945]
[1735678324310,3.50683,3350.0,3349.9,0.29903]
[1735678325220,3.2078,3350.0,3349.9,0.29903]
[1735678326718,3.50676,3350.8,3350.7,0.29896]
[1735678326914,0.29896,3350.8,3350.7,0.29896]
[1735678328622,0.29898,3350.7,3350.6,0.29896]
[1735678328912,0.74733,3351.1,3350.4,0.4332]
[1735678329117,0.29898,3350.6,3350.5,0.29898]
[1735678329820,0.29898,3350.6,3350.5,1.20948]
[1735678330020,0.29896,3350.8,3350.7,0.29895]
[1735678330923,3.2078,3351.2,3350.5,2.72120804]
[1735678331109,3.2078,3351.6,3350.5,5.92900804]
[1735678331316,3.2078,3351.6,3351.1,1.81070804]
[1735678331614,0.29891,3351.4,3351.3,0.2989]
[1735678332622,0.29891,3351.3,3351.2,0.9171]
[1735678333012,0.29893,3351.1,3351.0,1.221]
[1735678333415,0.29895,3350.8,3350.7,1.21606]
[1735678333622,0.29895,3350.8,3350.7,0.9171]
[1735678333814,3.2078,3350.8,3350.6,0.4545]
[1735678334017,0.29896,3350.7,3350.6,0.4545]
[1735678336020,1.81070804,3350.7,3350.2,0.8906]
[1735678336219,0.299,3350.3,3350.2,0.8906]
[1735678336621,0.29899,3350.4,3350.3,0.29899]
[1735678336825,0.29899,3350.5,3350.4,0.29898]
[1735678337119,0.29899,3350.4,3350.3,0.4256]
[1735678337321,3.50679,3350.4,3350.3,0.4256]
[1735678337518,0.299,3350.3,3350.2,0.8906]
[1735678338822,3.2078,3350.4,3350.2,0.8906]
[1735678339024,3.50679,3350.4,3350.3,0.299]
[1735678339220,0.299,3350.3,3350.2,0.8906]
[1735678340121,0.299,3350.3,3349.8,0.29904]
[1735678340122,0.7475,3350.3,3349.8,0.29904]
[1735678340422,5.01850804,3350.4,3349.8,0.9006]
[1735678340724,0.29903,3350.1,3350.0,0.29902]
[1735678341121,0.29903,3350.0,3349.9,0.29903]
[1735678341327,3.2078,3350.4,3349.8,0.9006]
[1735678341521,3.2078,3350.8,3350.5,0.29897]
[1735678341823,3.2078,3350.8,3350.6,0.4375]
[1735678341824,0.29897,3350.7,3350.6,0.4375]
[1735678342225,3.2078,3350.8,3350.7,0.29896]
[1735678342527,3.2078,3350.8,3350.7,0.72176]
[1735678342717,3.2078,3350.8,3350.7,1.18686]
[1735678343623,3.50675,3350.8,3350.7,1.18686]
[1735678344025,3.50675,3350.8,3350.7,0.8879]
[1735678344221,0.29899,3350.5,3350.4,0.29898]
[1735678344531,0.29899,3350.5,3350.4,0.8565]
[1735678344914,0.29899,3350.5,3350.4,1.15549]
[1735678345726,0.29899,3350.5,3350.4,0.8565]
[1735678346126,0.29899,3350.5,3350.4,1.15549]
[1735678346323,0.29899,3350.5,3350.4,0.8565]
[1735678346728,1.81070804,3350.7,3349.4,0.76877]
[1735678347027,0.9076,3350.9,3349.8,0.73644]
[1735678347028,0.29905,3349.9,3349.8,0.73644]
[1735678347626,3.9553,3350.4,3349.8,0.4374]
[1735678347924,0.29903,3349.9,3349.8,0.4374]
[1735678348129,3.2078,3349.9,3349.6,0.8668]
[1735678348330,0.29905,3349.7,3349.6,0.8668]
[1735678348630,0.29905,3349.7,3349.6,0.4376]
[1735678350437,0.29907,3349.5,3349.4,0.02108]
[1735678350628,5.31757804,3349.5,3349.4,0.02108]
[1735678351828,0.29915,3348.6,3348.5,0.4611]
[1735678355024,0.29917,3348.4,3348.3,0.4349]
[1735678356528,3.50697,3348.4,3348.3,0.4349]
[1735678356931,0.29916,3348.6,3348.5,0.29915]
[1735678357130,3.46846067,3349.1,3348.5,3.2078]
[1735678357436,0.29912,3349.0,3348.9,0.29912]
[1735678357933,4.92372423,3349.1,3349.0,0.29911]
[1735678358130,4.62461423,3349.1,3348.6,0.4234]
[1735678358438,0.29913,3348.9,3348.8,0.29913]
[1735678358737,0.29912,3349.0,3348.9,0.29912]
[1735678359934,1.81070804,3349.0,3348.7,0.4642]
[1735678360140,3.50693,3348.8,3348.7,0.76334]
[1735678361236,0.29913,3348.8,3348.7,0.76334]
[1735678362235,0.29913,3348.8,3348.7,0.4642]
[1735678362533,3.50693,3348.8,3348.7,0.4642]
[1735678362735,0.29918,3348.3,3348.2,0.8832]
[1735678363435,0.29918,3348.3,3348.2,1.18239]
[1735678363741,0.29918,3348.3,3348.2,0.8832]
[1735678363940,0.29918,3348.3,3348.2,1.18239]
[1735678364232,0.29918,3348.3,3348.2,0.8832]
[1735678364734,0.29918,3348.4,3348.3,0.29917]
[1735678364937,3.95565,3348.8,3348.2,0.8832]
[1735678364938,3.2078,3348.8,3348.2,0.8832]
[1735678365327,0.29916,3348.6,3348.5,0.29915]
[1735678366136,0.29916,3348.6,3348.2,0.8832]
[1735678366336,0.29916,3348.6,3348.5,0.29916]
[1735678366638,0.29917,3348.5,3348.4,0.29916]
[1735678366839,3.2078,3348.8,3348.2,0.8832]
[1735678367137,3.50694,3348.8,3348.7,0.29914]
[1735678367842,3.2078,3348.8,3348.3,0.74795]
[1735678368036,0.29917,3348.5,3348.4,0.29916]
[1735678370341,1.047,3348.7,3348.3,0.29917]
[1735678370540,0.29918,3348.4,3348.3,0.29917]
[1735678371444,0.29916,3348.6,3348.5,0.29915]
[1735678371743,0.29917,3348.5,3348.4,0.29916]
[1735678373145,3.2078,3348.8,3348.2,0.8832]
[1735678373447,3.50694,3348.8,3348.7,0.29914]
[1735678373643,3.2078,3348.8,3348.7,0.29914]
[1735678373944,3.2078,3349.2,3348.7,1.81070804]
[1735678374140,0.29911,3349.1,3349.0,0.29911]
[1735678374847,0.29911,3349.1,3349.0,0.74321]
[1735678376146,0.29911,3349.1,3349.0,0.4441]
[1735678377347,0.29911,3349.0,3348.9,0.4203]
[1735678379244,0.29911,3349.0,3348.9,0.71942]
[1735678380447,0.29911,3349.0,3348.9,0.4203]
[1735678380647,0.29911,3349.0,3348.9,0.71942]
[1735678380842,0.29911,3349.0,3348.9,0.4203]
[1735678382044,0.29911,3349.0,3348.9,0.71942]
[1735678382244,0.29911,3349.0,3348.9,0.4203]
[1735678385542,0.29911,3349.0,3348.9,0.71942]
[1735678385844,3.2078,3349.2,3348.6,0.4534]
[1735678386047,0.29914,3348.7,3348.6,0.4534]
[1735678386250,0.29914,3348.7,3348.6,0.75255]
[1735678387744,0.29914,3348.7,3348.6,0.4534]
[1735678387945,0.29914,3348.7,3348.6,0.75255]
[1735678388345,1.81070804,3348.7,3347.8,3.2078]
[1735678388544,0.29919,3348.2,3348.1,0.75598]
[1735678389852,5.01850804,3348.4,3347.4,7.02133531]
[1735678390043,0.29922,3347.8,3347.7,0.4321]
[1735678390548,0.29922,3347.8,3347.7,0.73133]
[1735678390853,3.50702,3347.9,3347.8,0.29922]
[1735678391143,3.2078,3348.3,3347.7,0.4321]
[1735678391345,5.52917514,3348.7,3348.1,1.81070804]
[1735678391547,5.82831514,3348.7,3348.6,0.29915]
[1735678391841,9.01123786,3348.7,3348.6,0.29915]
[1735678392043,5.80343786,3348.7,3348.6,0.29915]
[1735678393048,2.14643786,3348.7,3348.6,6.51915]
[1735678393242,1.81070804,3350.3,3348.6,6.22]
[1735678393243,0.8928,3349.9,3348.6,6.22]
[1735678393449,0.29908,3349.4,3349.2,0.29909]
[1735678393647,3.2078,3349.3,3348.6,1.22]
[1735678393843,3.2078,3349.3,3348.7,1.22]
[1735678394048,3.2078,3349.3,3349.1,0.2991]
[1735678394244,0.2991,3349.2,3348.7,1.22]
[1735678394451,3.2078,3349.3,3348.7,1.22]
[1735678394644,5.01850804,3349.3,3348.5,3.2078]
[1735678394845,0.29911,3349.1,3349.0,0.29911]
[1735678395057,5.83424413,3349.3,3349.2,0.2991]
[1735678395356,2.32735413,3349.3,3349.2,0.2991]
[1735678396654,0.29911,3349.1,3349.0,0.29911]
[1735678396859,2.32735413,3349.3,3349.1,0.2991]
[1735678396860,0.2991,3349.2,3349.1,0.2991]
[1735678397256,0.2991,3349.2,3349.0,0.29911]
[1735678397551,0.2991,3349.2,3348.7,0.4635]
[1735678397757,2.62646413,3349.1,3348.7,0.4635]
[1735678397960,0.29912,3349.0,3348.7,0.4635]
[1735678398152,2.32735413,3349.1,3348.7,0.4635]
[1735678398462,2.32735413,3349.1,3349.0,0.29911]
[1735678398665,2.32735413,3349.1,3348.7,0.4635]
[1735678398859,2.32735413,3349.1,3349.0,0.29913]
[1735678399058,0.29914,3349.1,3349.0,0.29913]
[1735678399858,0.29914,3349.1,3348.9,0.29915]
[1735678400059,0.29914,3349.0,3348.9,0.29915]
[1735678400258,0.29914,3349.0,3348.7,0.4635]
[1735678400259,3.2078,3349.0,3348.7,0.4635]
[1735678400460,0.29915,3348.9,3348.7,0.76267]
[1735678400662,3.2078,3349.0,3348.3,7.44253531]
[1735678400856,0.29919,3348.5,3348.4,0.29919]
[1735678401057,0.29915,3348.9,3348.6,0.29918]
[1735678401351,0.29918,3348.7,3348.3,0.8704]
[1735678401763,0.29918,3348.7,3348.6,0.29918]
[1735678401956,2.62750454,3348.8,3348.7,0.29917]
[1735678402152,0.29917,3348.7,3348.6,0.29918]
[1735678403158,0.2992,3348.5,3348.4,0.2992]
[1735678403960,2.32834454,3348.8,3348.3,0.4492]
[1735678403961,0.2992,3348.4,3348.3,0.4492]
[1735678404660,0.2992,3348.4,3348.3,0.74841]
[1735678405261,2.62754454,3348.4,3348.3,0.4492]
[1735678405458,2.62754454,3348.4,3348.3,0.74841]
[1735678405659,2.32834454,3348.4,3348.3,0.74841]
[1735678406465,2.62754454,3348.4,3348.3,0.74841]
[1735678407058,2.32834454,3348.4,3348.3,0.74841]
[1735678408369,2.62753454,3348.5,3348.4,0.2992]
[1735678408763,2.32834454,3348.5,3348.4,0.2992]
[1735678410269,5.83533454,3348.5,3348.4,0.2992]
[1735678411165,5.83533454,3348.5,3348.3,0.4492]
[1735678411468,5.53614454,3348.5,3347.9,1.22]
[1735678411667,0.2992,3348.4,3348.3,0.2992]
[1735678412274,6.99802119,3348.5,3348.4,0.2992]
[1735678413668,3.50699,3348.5,3348.4,0.2992]
[1735678414071,0.29919,3348.5,3348.4,0.2992]
[1735678414467,3.49103119,3348.6,3348.0,1.19307]
[1735678414774,3.49103119,3348.6,3348.5,0.29919]
[1735678415864,0.29917,3348.7,3348.2,0.74803]
[1735678416060,2.3295574,3348.8,3348.7,0.29917]
[1735678416267,2.6287174,3348.8,3348.7,0.29917]
[1735678416461,2.3295574,3348.8,3348.7,0.29917]
[1735678417067,3.2078,3348.9,3348.6,2.1051]
[1735678417266,3.2078,3348.9,3348.8,0.29916]
[1735678417470,0.29917,3348.8,3348.7,0.29917]
[1735678417677,1.19477,3348.8,3348.7,0.29917]
[1735678420069,0.8956,3348.8,3348.7,0.29917]
[1735678420271,0.8956,3348.8,3348.2,3.44385804]
[1735678420473,0.29919,3348.6,3348.5,0.29918]
[1735678420775,0.29918,3348.7,3348.6,0.29917]
[1735678421775,2.6285617,3348.7,3348.6,0.29917]
[1735678422369,0.2992,3348.5,3348.4,0.29919]
[1735678422976,3.2078,3348.5,3348.2,0.4388]
[1735678423174,0.29921,3348.4,3348.3,0.2992]
[1735678423669,3.2078,3348.5,3348.2,0.4388]
[1735678423876,3.2078,3348.5,3348.4,0.2992]
[1735678424273,5.5371817,3348.5,3348.4,0.2992]
[1735678425679,3.2078,3348.5,3348.4,0.2992]
[1735678425879,0.29919,3348.6,3348.2,0.4388]
[1735678426087,0.29919,3348.6,3348.5,0.29919]
[1735678426391,3.50699,3348.6,3348.5,0.29919]
[1735678428089,5.8363717,3348.6,3348.5,0.29919]
[1735678429493,5.5371817,3348.6,3348.5,0.29919]
[1735678430285,2.3293817,3348.6,3348.5,0.29919]
[1735678430686,2.3293817,3348.6,3348.5,2.10989804]
[1735678432190,2.3293817,3348.9,3348.8,0.29916]
[1735678433288,5.5371817,3349.0,3348.7,0.4279]
[1735678433483,5.5371817,3349.0,3348.9,0.29915]
[1735678433981,2.3293817,3349.0,3348.9,0.29915]
[1735678436283,2.3293817,3349.0,3348.8,2.25050804]
[1735678436284,0.29914,3349.1,3349.0,0.29914]
[1735678436482,0.29915,3348.9,3348.8,0.73895]
[1735678436885,0.29915,3349.0,3348.9,0.29914]
[1735678437295,0.29915,3348.9,3348.8,0.29915]
[1735678437489,0.74335,3348.9,3348.8,0.29915]
[1735678439396,2.3293817,3349.0,3348.9,0.29915]
[1735678439592,2.6285217,3349.0,3348.9,0.29915]
[1735678439792,3.49103119,3349.0,3348.7,0.4203]
[1735678439996,3.49103119,3349.0,3348.9,0.29915]
[1735678441096,2.33185498,3349.0,3348.8,0.4465]
[1735678441296,0.98178498,3349.0,3348.9,3.50695]
[1735678441496,1.16599615,3349.2,3349.1,0.29914]
[1735678441685,0.03611748,3349.2,3349.1,2.10984804]
[1735678441890,0.03611748,3349.2,3349.1,3.31784804]
[1735678442393,0.03611748,3349.2,3349.1,1.50714]
[1735678442989,0.29913,3349.2,3349.1,4.18706535]
[1735678443888,0.29913,3349.2,3349.1,4.48620535]
[1735678444294,0.29913,3349.2,3349.1,0.29914]
[1735678445699,0.74806829,3349.2,3349.1,0.29914]
[1735678447095,0.44893829,3349.2,3349.1,0.29914]
[1735678447892,0.44893829,3349.2,3348.8,3.00510804]
[1735678447893,3.50692,3349.3,3349.2,0.29913]
[1735678448100,3.2078,3349.3,3349.2,0.29913]
[1735678450103,3.2078,3349.3,3349.2,0.74293]
[1735678450399,3.2078,3349.3,3348.8,5.14666148]
[1735678450599,3.2078,3349.3,3349.1,0.29913]
[1735678450600,0.884,3349.2,3349.1,0.29913]
[1735678451107,3.2078,3349.3,3349.2,0.29913]
[1735678452104,3.50692,3349.3,3349.2,0.29913]
[1735678452601,3.2078,3349.3,3349.2,0.29913]
[1735678453098,3.2078,3349.3,3348.8,4.70016148]
[1735678453304,0.29916,3349.0,3348.9,0.29914]
[1735678453502,0.29913,3349.2,3349.1,0.29913]
[1735678454513,3.50692,3349.3,3349.2,0.29913]
[1735678454807,3.2078,3349.3,3348.7,1.19172]
[1735678455007,0.29916,3348.9,3348.8,0.29915]
[1735678456698,3.50696,3348.9,3348.8,0.29915]
[1735678457204,0.29919,3348.6,3348.5,0.29918]
[1735678457599,0.29919,3348.5,3348.4,4.99935148]
[1735678457805,1.22259,3348.5,3348.4,4.99935148]
[1735678458109,1.22259,3348.5,3348.4,0.29919]
[1735678459301,0.9234,3348.5,3348.4,0.29919]
[1735678459508,0.4603,3348.5,3348.4,0.29919]
[1735678459901,0.29917,3348.8,3348.7,0.29916]
[1735678460102,0.4586,3348.8,3348.7,0.29916]
[1735678460309,5.08800826,3349.0,3348.9,0.29915]
[1735678460910,0.4333,3349.0,3348.9,0.29915]
[1735678461512,1.18524,3349.0,3348.9,0.29915]
[1735678462708,0.4528,3349.0,3348.9,0.29915]
[1735678462912,8.16162826,3349.3,3349.2,0.29913]
[1735678463310,0.29914,3349.2,3349.1,0.29913]
[1735678463612,0.29915,3349.0,3348.9,0.29914]
[1735678464114,7.86250826,3349.3,3348.6,0.4228]
[1735678464309,0.29917,3348.8,3348.7,0.29916]
[1735678464705,0.76297,3348.8,3348.7,0.29916]
[1735678465911,1.19347,3348.8,3348.7,0.29916]
[1735678467512,0.29918,3348.7,3348.6,0.29918]
[1735678467711,0.29919,3348.6,3348.5,0.29918]
[1735678468113,0.29918,3348.7,3348.6,0.29917]
[1735678468514,0.4638,3348.8,3348.7,0.29917]
[1735678468816,3.654,3348.9,3348.8,0.29916]
[1735678469013,0.4462,3348.9,3348.8,0.29916]
[1735678469221,0.29914,3349.1,3349.0,0.29914]
[1735678469421,0.75854,3349.1,3349.0,0.29914]
[1735678470119,0.4594,3349.1,3349.0,0.29914]
[1735678470310,0.75854,3349.1,3349.0,0.29914]
[1735678471318,3.2078,3349.3,3349.2,0.29913]
[1735678471721,3.50692,3349.3,3349.2,0.29913]
[1735678472515,3.95582572,3349.3,3349.2,0.29913]
[1735678473916,3.65670572,3349.3,3348.8,0.9015]
[1735678474221,0.29915,3349.0,3348.9,0.29914]
[1735678474724,0.72295,3349.0,3348.9,0.29914]
[1735678475022,0.4238,3349.0,3348.9,0.29914]
[1735678475409,0.72294,3349.0,3348.9,0.29914]
[1735678480117,0.72294,3349.0,3348.8,0.4498]
[1735678480118,0.29915,3348.9,3348.8,0.4498]
[1735678480319,0.29917,3348.7,3348.6,3.14016148]
[1735678480520,0.29918,3348.6,3348.5,6.71883927]
[1735678480818,1.30949962,3348.6,3348.5,1.54680927]
[1735678481014,0.29923,3348.0,3347.9,9.36178042]
[1735678481215,3.50703,3348.0,3347.9,9.36178042]
[1735678482618,3.50703,3348.0,3347.6,0.4408]
[1735678482619,0.29926,3347.7,3347.6,0.4408]
[1735678484028,0.2993,3347.4,3346.9,1.3607]
[1735678484215,3.2078,3347.4,3346.9,1.3607]
[1735678484420,0.2993,3347.3,3347.2,0.2993]
[1735678484626,3.50709,3347.4,3347.3,0.2993]
[1735678485225,3.2078,3347.4,3346.9,1.3607]
[1735678485428,0.2993,3347.3,3347.2,0.2993]
[1735678486330,0.29931,3347.2,3347.1,0.29931]
[1735678487122,3.2078,3347.4,3346.9,1.3607]
[1735678487322,3.50709,3347.4,3347.3,0.2993]
[1735678489036,3.2078,3347.4,3347.3,0.2993]
[1735678490142,3.50705,3347.8,3347.7,0.29925]
[1735678490343,3.2078,3347.8,3346.9,0.9045]
[1735678490537,3.2078,3347.4,3347.3,0.2993]
[1735678490740,3.2078,3347.8,3346.9,0.9045]
[1735678490943,0.29929,3347.4,3347.3,0.29929]
[1735678491147,0.29928,3347.5,3347.4,0.29928]
[1735678493055,0.2993,3347.4,3347.3,0.29929]
[1735678493353,0.29928,3347.5,3347.4,0.29928]
[1735678494054,0.2993,3347.3,3347.2,0.2993]
[1735678494352,3.2078,3347.4,3346.9,0.9045]
[1735678494557,3.50709,3347.4,3347.3,0.2993]
[1735678494749,0.29928,3347.5,3347.4,0.29929]
[1735678495751,1.81070804,3347.6,3347.0,0.4534]
[1735678496059,0.29931,3347.2,3347.1,0.2993]
[1735678496853,0.29931,3347.1,3347.0,0.4534]
[1735678497051,0.29932,3347.0,3346.9,0.4524]
[1735678497248,5.31782804,3347.0,3346.9,0.4524]
[1735678498255,0.74835,3346.9,3346.4,0.8776]
[1735678498458,0.29937,3346.5,3346.4,0.8776]
[1735678499057,0.29937,3346.5,3346.4,1.17698]
[1735678499354,0.2994,3346.3,3346.2,0.29939]
[1735678499750,0.2994,3346.3,3346.0,1.3494]
[1735678499751,1.81070804,3346.4,3346.0,1.3494]
[1735678499951,0.2994,3346.1,3346.0,1.6488]
[1735678500151,3.5072,3346.2,3346.1,0.2994]
[1735678500352,0.2994,3346.1,3346.0,0.9105]
[1735678500556,0.29945,3345.7,3345.6,0.29944]
[1735678500758,0.29945,3345.7,3345.5,0.465]
[1735678500759,0.29945,3345.6,3345.5,0.465]
[1735678501454,3.2078,3345.7,3345.3,0.8844]
[1735678501656,2.11017804,3345.4,3345.3,0.4389]
[1735678502655,3.6586,3345.7,3345.3,0.73837]
[1735678502656,0.29947,3345.5,3345.3,0.73837]
[1735678502858,0.29947,3345.4,3345.3,0.73837]
[1735678503154,5.01850804,3345.7,3345.3,0.4389]
[1735678503349,0.29946,3345.5,3345.4,0.4504]
[1735678503549,3.2078,3345.7,3345.4,0.4504]
[1735678503854,3.2078,3345.7,3345.6,0.29945]
[1735678504665,3.2078,3346.2,3345.6,1.81070804]
[1735678504864,3.2078,3346.2,3346.1,0.2994]
[1735678505860,3.2078,3347.1,3346.2,0.74849]
[1735678506062,0.29934,3346.9,3346.7,0.29934]
[1735678506366,3.2078,3347.1,3347.0,0.29932]
[1735678507259,3.2078,3347.1,3346.8,0.4537]
[1735678507564,3.50711,3347.1,3347.0,0.29932]
[1735678508269,3.50711,3347.1,3346.8,0.4537]
[1735678508270,3.2078,3347.1,3346.8,0.4537]
[1735678508462,0.29933,3347.0,3346.9,0.29933]
[1735678508767,3.50712,3347.1,3347.0,0.29932]
[1735678509159,3.50711,3347.1,3347.0,0.29932]
[1735678509770,3.50711,3347.1,3346.8,0.4537]
[1735678509771,0.29933,3346.9,3346.8,0.4537]
[1735678510068,0.29937,3346.5,3346.4,0.29938]
[1735678510263,0.29936,3346.7,3346.2,3.2078]
[1735678510572,0.29936,3346.7,3346.5,0.29936]
[1735678510765,0.29936,3346.6,3346.5,0.29936]
[1735678510963,0.29936,3346.6,3346.2,3.2078]
[1735678511264,1.81070804,3346.9,3346.2,3.2078]
[1735678511458,0.29938,3346.4,3346.2,3.50719]
[1735678511653,0.29938,3346.4,3346.1,0.4347]
[1735678511858,0.29944,3345.8,3345.5,0.29945]
[1735678512058,3.2078,3346.0,3345.0,3.11990804]
[1735678512255,0.29947,3345.4,3345.3,0.29947]
[1735678512468,3.50725,3345.6,3345.5,0.29946]
[1735678512867,0.29947,3345.4,3345.3,0.29947]
[1735678513168,3.2078,3345.6,3345.0,1.3092]
[1735678513468,5.01850804,3345.2,3344.3,1.11253938]
[1735678513660,3.50734,3344.6,3344.5,0.29954]
[1735678513863,3.2078,3345.0,3344.3,1.11253938]
[1735678514365,0.29953,3344.8,3344.7,0.29953]
[1735678514758,3.2078,3345.0,3344.3,1.11253938]
[1735678514959,0.29953,3344.7,3344.6,0.29954]
[1735678515164,3.2078,3345.0,3344.3,1.11253938]
[1735678516067,0.29954,3344.6,3344.5,0.29954]
[1735678516368,0.29955,3344.6,3344.4,0.29955]
[1735678516569,0.29955,3344.6,3344.5,0.29955]
[1735678516869,0.29952,3344.9,3344.4,0.29955]
[1735678517068,0.29953,3344.7,3344.5,0.29954]
[1735678517271,0.29953,3344.7,3344.6,0.29954]
[1735678519073,3.2078,3345.0,3344.3,1.11253938]
[1735678519370,3.2078,3345.0,3344.4,0.29955]
[1735678519371,0.29953,3344.7,3344.4,0.29955]
[1735678519564,0.29953,3344.7,3344.6,0.29954]
[1735678519759,0.29954,3344.6,3344.5,0.29954]
[1735678520366,3.2078,3345.0,3344.3,1.11253938]
[1735678520667,0.29954,3344.6,3344.5,0.29955]
[1735678520867,3.2078,3345.0,3344.3,1.11253938]
[1735678521066,0.29953,3344.7,3344.6,0.29953]
[1735678522171,3.2078,3345.0,3344.3,1.11253938]
[1735678522568,0.29955,3344.4,3344.3,1.11253938]
[1735678522965,0.74894,3344.3,3343.0,3.14470804]
[1735678523268,3.2078,3343.8,3343.7,0.29962]
[1735678523470,3.50741,3343.8,3343.2,0.29966]
[1735678523672,3.50741,3343.8,3343.6,0.29962]
[1735678524171,3.2078,3343.8,3343.0,3.14470804]
[1735678524367,3.2078,3343.8,3343.3,0.29965]
[1735678524664,3.2078,3343.8,3343.0,1.334]
[1735678525169,3.2078,3343.8,3343.0,0.894]
[1735678525375,0.29965,3343.4,3343.3,0.29965]
[1735678525572,0.29964,3343.5,3343.4,0.29964]
[1735678525871,0.29964,3343.5,3343.0,0.894]
[1735678525872,0.29965,3343.4,3343.3,0.29965]
[1735678526267,5.01850804,3343.8,3343.2,0.29966]
[1735678526569,5.01850804,3343.8,3343.0,0.894]
[1735678526770,0.29966,3343.3,3343.1,0.29967]
[1735678526975,5.76753804,3343.8,3343.0,0.894]
[1735678527266,0.29965,3343.4,3343.3,0.29965]
[1735678527664,0.29966,3343.3,3343.2,0.29965]
[1735678528463,3.50745,3343.4,3343.3,0.29965]
[1735678529974,3.95664,3344.7,3344.1,0.29957]
[1735678530275,0.29957,3344.2,3344.1,0.29958]
[1735678530475,0.29957,3344.3,3343.8,3.2078]
[1735678530677,0.29957,3344.3,3344.2,0.29957]
[1735678530982,3.2078,3344.7,3343.8,3.2078]
[1735678531170,3.2078,3344.7,3344.3,0.29956]
[1735678531171,0.29956,3344.4,3344.3,0.29956]
[1735678532277,3.2078,3344.7,3343.8,3.95681]
[1735678532278,3.2078,3344.7,3344.0,0.74898]